[Event "Early-Titled-Tuesday-Blitz-April-16-2024"]
[Site "Chess.com"]
[Date "2024.04.16"]
[Round "9"]
[White "ExchangeAB"]
[Black "MdSharifHossain"]
[Result "0-1"]
[WhiteElo "2400"]
[BlackElo "2296"]
[TimeControl "180+1"]
[EndTime "9:51:20 PDT"]
[Termination "MdSharifHossain won by resignation"]

1. d4 {[%clk 0:03:00.9]} 1... d5 {[%clk 0:02:54.7]} 2. Nf3 {[%clk 0:03:01.8]}
2... e6 {[%clk 0:02:53]} 3. e3 {[%clk 0:03:02.4]} 3... c5 {[%clk 0:02:52.1]} 4.
Nbd2 {[%clk 0:03:02.3]} 4... cxd4 {[%clk 0:02:49.4]} 5. exd4 {[%clk 0:03:02.3]}
5... Nf6 {[%clk 0:02:48.9]} 6. Bd3 {[%clk 0:03:02.3]} 6... Bd6 {[%clk
0:02:47.9]} 7. c3 {[%clk 0:03:02.8]} 7... O-O {[%clk 0:02:48]} 8. O-O {[%clk
0:03:03.4]} 8... Nbd7 {[%clk 0:02:47.4]} 9. Re1 {[%clk 0:03:03.7]} 9... a6
{[%clk 0:02:47.2]} 10. a4 {[%clk 0:03:02.8]} 10... b6 {[%clk 0:02:46.5]} 11. Nf1
{[%clk 0:03:02.7]} 11... Bb7 {[%clk 0:02:44.4]} 12. Ng3 {[%clk 0:03:03]} 12...
h6 {[%clk 0:02:43.4]} 13. Ne5 {[%clk 0:03:00.3]} 13... Rc8 {[%clk 0:02:33.3]}
14. Nxd7 {[%clk 0:02:38.7]} 14... Qxd7 {[%clk 0:02:31.5]} 15. Qe2 {[%clk
0:02:35.8]} 15... Bxg3 {[%clk 0:02:30.5]} 16. hxg3 {[%clk 0:02:34.5]} 16... Ne4
{[%clk 0:02:29.8]} 17. Bxa6 {[%clk 0:02:28.9]} 17... Bxa6 {[%clk 0:02:23.3]} 18.
Qxa6 {[%clk 0:02:29.8]} 18... Ra8 {[%clk 0:02:22.6]} 19. Qd3 {[%clk 0:02:18.1]}
19... Rxa4 {[%clk 0:02:20.5]} 20. Rb1 {[%clk 0:02:05.9]} 20... Rc4 {[%clk
0:02:12]} 21. g4 {[%clk 0:02:04.4]} 21... Qe7 {[%clk 0:02:03.1]} 22. f3 {[%clk
0:02:03.6]} 22... Nd6 {[%clk 0:01:51.1]} 23. Bf4 {[%clk 0:01:48.1]} 23... Rfc8
{[%clk 0:01:48.5]} 24. Rbc1 {[%clk 0:01:30.3]} 24... Ra4 {[%clk 0:01:39]} 25.
Rc2 {[%clk 0:01:22.1]} 25... Ra2 {[%clk 0:01:31.3]} 26. Rce2 {[%clk 0:01:21]}
26... Nc4 {[%clk 0:01:27.8]} 27. b3 {[%clk 0:01:18.7]} 27... Rxe2 {[%clk
0:01:17.5]} 28. Rxe2 {[%clk 0:01:19.6]} 28... Na5 {[%clk 0:01:15.2]} 29. Qb5
{[%clk 0:00:57.5]} 29... Rxc3 {[%clk 0:01:07.5]} 30. Qxb6 {[%clk 0:00:56.1]}
30... Nxb3 {[%clk 0:01:02.1]} 31. Bd6 {[%clk 0:00:44.1]} 31... Qh4 {[%clk
0:00:56.9]} 32. Qb8+ {[%clk 0:00:33]} 32... Kh7 {[%clk 0:00:55.9]} 33. Bg3
{[%clk 0:00:28.6]} 33... Rc1+ {[%clk 0:00:47.3]} 34. Kf2 {[%clk 0:00:28.5]}
34... Qh1 {[%clk 0:00:47.4]} 35. Be5 {[%clk 0:00:14.2]} 35... Nxd4 {[%clk
0:00:29.5]} 36. Bxd4 {[%clk 0:00:09.9]} 36... Qg1+ {[%clk 0:00:29.1]} 37. Kg3
{[%clk 0:00:10.3]} 37... Qxd4 {[%clk 0:00:28.9]} 38. Qe8 {[%clk 0:00:08.6]}
38... Qf6 {[%clk 0:00:26.1]} 39. Qa4 {[%clk 0:00:05.7]} 39... Rc4 {[%clk
0:00:25.2]} 40. Qc2+ {[%clk 0:00:05.1]} 40... Qg6 {[%clk 0:00:24.3]} 41. Qxg6+
{[%clk 0:00:04]} 41... Kxg6 {[%clk 0:00:24.1]} 42. Ra2 {[%clk 0:00:03.6]} 42...
Kf6 {[%clk 0:00:22.1]} 43. Ra7 {[%clk 0:00:03.5]} 43... g5 {[%clk 0:00:21.7]}
44. Rd7 {[%clk 0:00:03.5]} 44... Kg6 {[%clk 0:00:20.2]} 45. Rd8 {[%clk
0:00:03.8]} 45... Kg7 {[%clk 0:00:19.6]} 46. Rd7 {[%clk 0:00:04]} 46... Rc3
{[%clk 0:00:18.5]} 47. Rd8 {[%clk 0:00:04.4]} 47... Rd3 {[%clk 0:00:17.8]} 48.
Kf2 {[%clk 0:00:04.6]} 48... e5 {[%clk 0:00:17.1]} 49. Ke2 {[%clk 0:00:04.7]}
49... e4 {[%clk 0:00:17.3]} 50. fxe4 {[%clk 0:00:04.2]} 50... dxe4 {[%clk
0:00:17.2]} 51. Re8 {[%clk 0:00:02.4]} 51... Rg3 {[%clk 0:00:16.7]} 52. Rxe4
{[%clk 0:00:01.4]} 52... Rxg2+ {[%clk 0:00:16.7]} 53. Kf3 {[%clk 0:00:02.1]}
53... Ra2 {[%clk 0:00:16.2]} 54. Rb4 {[%clk 0:00:02.4]} 54... Ra5 {[%clk
0:00:15.3]} 55. Kg2 {[%clk 0:00:02.7]} 55... Kg6 {[%clk 0:00:14.4]} 56. Rb6+
{[%clk 0:00:02.6]} 56... f6 {[%clk 0:00:14.5]} 57. Rc6 {[%clk 0:00:02.8]} 57...
Ra4 {[%clk 0:00:14.7]} 58. Kg3 {[%clk 0:00:03.1]} 58... Rf4 {[%clk 0:00:15]} 59.
Rb6 {[%clk 0:00:03]} 59... h5 {[%clk 0:00:14.9]} 60. gxh5+ {[%clk 0:00:03.1]}
60... Kxh5 {[%clk 0:00:15.8]} 61. Rb8 {[%clk 0:00:03.7]} 61... Kg6 {[%clk
0:00:15.4]} 62. Rg8+ {[%clk 0:00:03.7]} 62... Kf5 {[%clk 0:00:15]} 63. Ra8
{[%clk 0:00:04.6]} 63... Re4 {[%clk 0:00:14.5]} 64. Ra5+ {[%clk 0:00:04.8]}
64... Re5 {[%clk 0:00:14.8]} 65. Ra3 {[%clk 0:00:05.2]} 65... g4 {[%clk
0:00:13.1]} 66. Ra4 {[%clk 0:00:04.9]} 66... Re3+ {[%clk 0:00:12.9]} 67. Kg2
{[%clk 0:00:04.7]} 67... Kg5 {[%clk 0:00:12.5]} 68. Rb4 {[%clk 0:00:05.2]} 68...
f5 {[%clk 0:00:12]} 69. Ra4 {[%clk 0:00:05.8]} 69... f4 {[%clk 0:00:11.9]} 70.
Ra8 {[%clk 0:00:05.1]} 70... Re2+ {[%clk 0:00:11.6]} 71. Kf1 {[%clk 0:00:05.5]}
71... Rb2 {[%clk 0:00:11.4]} 72. Rh8 {[%clk 0:00:04.9]} 72... g3 {[%clk
0:00:11.1]} 73. Rh7 {[%clk 0:00:04.5]} 73... Kg4 {[%clk 0:00:10.8]} 74. Rb7
{[%clk 0:00:02.2]} 74... f3 {[%clk 0:00:09.9]} 75. Rxb2 {[%clk 0:00:02.4]} 75...
Kh3 {[%clk 0:00:09.3]} 76. Kg1 {[%clk 0:00:03]} 76... Kg4 {[%clk 0:00:08.4]} 77.
Kf1 {[%clk 0:00:03.4]} 77... Kh3 {[%clk 0:00:08.4]} 78. Ra2 {[%clk 0:00:03.1]}
78... Kg4 {[%clk 0:00:07.9]} 79. Ra4+ {[%clk 0:00:03.2]} 79... Kh3 {[%clk
0:00:07.6]} 80. Ra2 {[%clk 0:00:04.1]} 80... f2 {[%clk 0:00:04.9]} 81. Ra3
{[%clk 0:00:03.7]} 81... Kh2 {[%clk 0:00:04.7]} 82. Ra8 {[%clk 0:00:01.1]} 82...
g2+ {[%clk 0:00:04.5]} 83. Kxf2 {[%clk 0:00:01.6]} 83... g1=Q+ {[%clk
0:00:04.9]} 84. Ke2 {[%clk 0:00:02.1]} 84... Qg2+ {[%clk 0:00:05.1]} 85. Kd3
{[%clk 0:00:02.1]} 85... Qxa8 {[%clk 0:00:06]} 0-1

[Event "Early-Titled-Tuesday-Blitz-April-16-2024"]
[Site "Chess.com"]
[Date "2024.04.16"]
[Round "10"]
[White "Daaksboy"]
[Black "vovachesss"]
[Result "1/2-1/2"]
[WhiteElo "2420"]
[BlackElo "2758"]
[TimeControl "180+1"]
[EndTime "9:53:19 PDT"]
[Termination "Game drawn by repetition"]

1. d4 {[%clk 0:03:00.9]} 1... d5 {[%clk 0:03:00]} 2. c4 {[%clk 0:03:01.1]} 2...
c6 {[%clk 0:03:00.7]} 3. Nc3 {[%clk 0:03:01.4]} 3... Nf6 {[%clk 0:03:01]} 4.
cxd5 {[%clk 0:03:02]} 4... cxd5 {[%clk 0:03:01.5]} 5. Bf4 {[%clk 0:03:02.7]}
5... Nc6 {[%clk 0:03:01.6]} 6. e3 {[%clk 0:03:03.2]} 6... a6 {[%clk 0:03:02.2]}
7. Be2 {[%clk 0:03:03.7]} 7... Bf5 {[%clk 0:03:01.9]} 8. Nf3 {[%clk 0:03:04.4]}
8... e6 {[%clk 0:03:01.4]} 9. Qb3 {[%clk 0:03:04.6]} 9... Nh5 {[%clk 0:03:00.2]}
10. Be5 {[%clk 0:03:04.4]} 10... Na5 {[%clk 0:02:43.1]} 11. Qa4+ {[%clk
0:03:04.2]} 11... Nc6 {[%clk 0:02:43.4]} 12. Qb3 {[%clk 0:03:04.6]} 12... Na5
{[%clk 0:02:43.4]} 13. Qa4+ {[%clk 0:03:04.9]} 13... Nc6 {[%clk 0:02:38]} 14.
Qb3 {[%clk 0:03:04.9]} 1/2-1/2

[Event "Early-Titled-Tuesday-Blitz-April-16-2024"]
[Site "Chess.com"]
[Date "2024.04.16"]
[Round "10"]
[White "DenLaz"]
[Black "h4parah5"]
[Result "0-1"]
[WhiteElo "3106"]
[BlackElo "3024"]
[TimeControl "180+1"]
[EndTime "9:55:01 PDT"]
[Termination "h4parah5 won by resignation"]

1. d4 {[%clk 0:03:00.9]} 1... Nf6 {[%clk 0:02:59.7]} 2. c4 {[%clk 0:03:00.8]}
2... e6 {[%clk 0:02:59.9]} 3. Nf3 {[%clk 0:03:01.6]} 3... d5 {[%clk 0:03:00.2]}
4. g3 {[%clk 0:03:02.4]} 4... Bb4+ {[%clk 0:03:00.5]} 5. Bd2 {[%clk 0:03:02.7]}
5... Be7 {[%clk 0:03:01]} 6. Bg2 {[%clk 0:03:03.4]} 6... Nbd7 {[%clk 0:03:01.5]}
7. O-O {[%clk 0:03:03.9]} 7... c6 {[%clk 0:03:02]} 8. Qc2 {[%clk 0:03:04.4]}
8... b6 {[%clk 0:03:01.7]} 9. b3 {[%clk 0:02:57.4]} 9... a5 {[%clk 0:02:59.1]}
10. Bc3 {[%clk 0:02:53]} 10... O-O {[%clk 0:02:57.3]} 11. Nbd2 {[%clk
0:02:53.5]} 11... Bb7 {[%clk 0:02:55.1]} 12. e4 {[%clk 0:02:50.9]} 12... dxe4
{[%clk 0:02:55]} 13. Nxe4 {[%clk 0:02:51.8]} 13... c5 {[%clk 0:02:49.1]} 14.
Nxf6+ {[%clk 0:02:50.5]} 14... Bxf6 {[%clk 0:02:49]} 15. Ng5 {[%clk 0:02:37.6]}
15... Bxg5 {[%clk 0:02:48.8]} 16. Bxb7 {[%clk 0:02:38.2]} 16... Ra7 {[%clk
0:02:49.2]} 17. Be4 {[%clk 0:02:35.4]} 17... cxd4 {[%clk 0:02:35.9]} 18. Bxd4
{[%clk 0:02:21.8]} 18... Nf6 {[%clk 0:02:20.6]} 19. Bg2 {[%clk 0:02:11.1]} 19...
Qxd4 {[%clk 0:02:19]} 0-1

[Event "Early-Titled-Tuesday-Blitz-April-16-2024"]
[Site "Chess.com"]
[Date "2024.04.16"]
[Round "10"]
[White "Aminazinas"]
[Black "LileKoridze"]
[Result "1-0"]
[WhiteElo "2526"]
[BlackElo "2372"]
[TimeControl "180+1"]
[EndTime "9:55:12 PDT"]
[Termination "Aminazinas won by resignation"]

1. e4 {[%clk 0:03:00.9]} 1... c5 {[%clk 0:02:59.4]} 2. Nc3 {[%clk 0:03:00.4]}
2... d6 {[%clk 0:02:59.2]} 3. f4 {[%clk 0:03:00.4]} 3... a6 {[%clk 0:02:59.3]}
4. a4 {[%clk 0:02:59.7]} 4... Nc6 {[%clk 0:02:59.2]} 5. Nf3 {[%clk 0:03:00.1]}
5... e5 {[%clk 0:02:58]} 6. f5 {[%clk 0:02:56.8]} 6... Nf6 {[%clk 0:02:57.9]} 7.
Bc4 {[%clk 0:02:56]} 7... Be7 {[%clk 0:02:57.8]} 8. d3 {[%clk 0:02:55.5]} 8...
O-O {[%clk 0:02:58.2]} 9. O-O {[%clk 0:02:55.6]} 9... Nd4 {[%clk 0:02:58.2]} 10.
Nxd4 {[%clk 0:02:52.3]} 10... cxd4 {[%clk 0:02:58.4]} 11. Nd5 {[%clk 0:02:52.6]}
11... Nxd5 {[%clk 0:02:58.6]} 12. Bxd5 {[%clk 0:02:53.5]} 12... Bg5 {[%clk
0:02:59.1]} 13. Qh5 {[%clk 0:02:49.5]} 13... Bxc1 {[%clk 0:02:58.2]} 14. Raxc1
{[%clk 0:02:48.9]} 14... Qf6 {[%clk 0:02:57.3]} 15. Rf3 {[%clk 0:02:44.4]} 15...
h6 {[%clk 0:02:57.2]} 16. h4 {[%clk 0:02:40.4]} 16... Kh8 {[%clk 0:02:56.3]} 17.
g4 {[%clk 0:02:35.6]} 17... Qd8 {[%clk 0:02:42.5]} 18. g5 {[%clk 0:02:20.7]}
18... Kh7 {[%clk 0:02:42.2]} 19. Bxf7 {[%clk 0:02:15.2]} 19... Qe7 {[%clk
0:02:40]} 20. g6+ {[%clk 0:02:01.6]} 20... Kh8 {[%clk 0:02:38.8]} 21. f6 {[%clk
0:01:56.8]} 21... Qd8 {[%clk 0:02:38.9]} 22. Rcf1 {[%clk 0:01:48.2]} 22... Bd7
{[%clk 0:02:38.7]} 23. Bd5 {[%clk 0:01:43.4]} 23... Be8 {[%clk 0:02:32.6]} 24.
fxg7+ {[%clk 0:01:42.4]} 1-0

[Event "Early-Titled-Tuesday-Blitz-April-16-2024"]
[Site "Chess.com"]
[Date "2024.04.16"]
[Round "10"]
[White "Slovineanu"]
[Black "InitiatingASC"]
[Result "1-0"]
[WhiteElo "2505"]
[BlackElo "2368"]
[TimeControl "180+1"]
[EndTime "9:55:51 PDT"]
[Termination "Slovineanu won by resignation"]

1. d4 {[%clk 0:03:00.9]} 1... d5 {[%clk 0:02:51.7]} 2. Nf3 {[%clk 0:02:59.8]}
2... e6 {[%clk 0:02:50.7]} 3. c4 {[%clk 0:03:00.2]} 3... c5 {[%clk 0:02:51.1]}
4. e3 {[%clk 0:02:57.6]} 4... Nc6 {[%clk 0:02:50.1]} 5. cxd5 {[%clk 0:02:56.1]}
5... exd5 {[%clk 0:02:50]} 6. Bb5 {[%clk 0:02:56]} 6... Nf6 {[%clk 0:02:50.2]}
7. O-O {[%clk 0:02:55.1]} 7... Bd6 {[%clk 0:02:48.1]} 8. dxc5 {[%clk 0:02:53.7]}
8... Bxc5 {[%clk 0:02:49]} 9. Bxc6+ {[%clk 0:02:54.1]} 9... bxc6 {[%clk
0:02:48.4]} 10. Qc2 {[%clk 0:02:54.7]} 10... Qb6 {[%clk 0:02:44]} 11. b3 {[%clk
0:02:50.5]} 11... O-O {[%clk 0:02:40.7]} 12. Bb2 {[%clk 0:02:50.8]} 12... Be7
{[%clk 0:02:41]} 13. Nbd2 {[%clk 0:02:46.2]} 13... Ba6 {[%clk 0:02:36.3]} 14.
Rfd1 {[%clk 0:02:44.7]} 14... Rac8 {[%clk 0:02:36.3]} 15. Rac1 {[%clk
0:02:38.4]} 15... c5 {[%clk 0:02:33.8]} 16. Ng5 {[%clk 0:02:29.7]} 16... g6
{[%clk 0:02:15.9]} 17. Ndf3 {[%clk 0:02:20.9]} 17... h6 {[%clk 0:02:00.4]} 18.
Nh3 {[%clk 0:02:20.4]} 18... Rfd8 {[%clk 0:01:59.4]} 19. Nf4 {[%clk 0:02:16]}
19... Kh7 {[%clk 0:01:50.9]} 20. Ne5 {[%clk 0:02:14.1]} 20... Kg7 {[%clk
0:01:31.2]} 21. Nfxg6 {[%clk 0:02:06.3]} 21... fxg6 {[%clk 0:01:23.3]} 22. Qxg6+
{[%clk 0:02:04.7]} 1-0

[Event "Early-Titled-Tuesday-Blitz-April-16-2024"]
[Site "Chess.com"]
[Date "2024.04.16"]
[Round "10"]
[White "FairChess_on_YouTube"]
[Black "AnishOnYoutube"]
[Result "1/2-1/2"]
[WhiteElo "3104"]
[BlackElo "3064"]
[TimeControl "180+1"]
[EndTime "9:55:52 PDT"]
[Termination "Game drawn by repetition"]

1. c4 {[%clk 0:03:00.9]} 1... Nf6 {[%clk 0:03:00.1]} 2. Nf3 {[%clk 0:02:58.3]}
2... e6 {[%clk 0:03:00.1]} 3. b3 {[%clk 0:02:54]} 3... d5 {[%clk 0:02:59.1]} 4.
Bb2 {[%clk 0:02:54.5]} 4... c5 {[%clk 0:02:59.3]} 5. g3 {[%clk 0:02:52.7]} 5...
Nc6 {[%clk 0:02:52.1]} 6. cxd5 {[%clk 0:02:49.1]} 6... exd5 {[%clk 0:02:52.5]}
7. Bg2 {[%clk 0:02:49.7]} 7... h5 {[%clk 0:02:51.1]} 8. h4 {[%clk 0:02:37.6]}
8... Be7 {[%clk 0:02:26.7]} 9. O-O {[%clk 0:02:34.1]} 9... O-O {[%clk
0:02:25.7]} 10. d4 {[%clk 0:02:32.6]} 10... cxd4 {[%clk 0:02:24.6]} 11. Nxd4
{[%clk 0:02:32.2]} 11... Bg4 {[%clk 0:02:25.4]} 12. Nc3 {[%clk 0:02:29.2]} 12...
Re8 {[%clk 0:02:24]} 13. Rc1 {[%clk 0:02:19.8]} 13... Bc5 {[%clk 0:02:09.3]} 14.
Nxc6 {[%clk 0:01:58.7]} 14... bxc6 {[%clk 0:02:08.8]} 15. Bf3 {[%clk 0:01:59.3]}
15... Bh3 {[%clk 0:01:59.3]} 16. Bg2 {[%clk 0:01:46.9]} 16... Bg4 {[%clk
0:01:57.5]} 17. Bf3 {[%clk 0:01:47.2]} 17... Bh3 {[%clk 0:01:42.9]} 18. Bg2
{[%clk 0:01:36.5]} 18... Bg4 {[%clk 0:01:42.5]} 1/2-1/2

[Event "Early-Titled-Tuesday-Blitz-April-16-2024"]
[Site "Chess.com"]
[Date "2024.04.16"]
[Round "10"]
[White "RantomOpening"]
[Black "WiktoriaPOL"]
[Result "0-1"]
[WhiteElo "2506"]
[BlackElo "2401"]
[TimeControl "180+1"]
[EndTime "9:55:59 PDT"]
[Termination "WiktoriaPOL won by resignation"]

1. d4 {[%clk 0:03:00.9]} 1... Nf6 {[%clk 0:02:51.2]} 2. c4 {[%clk 0:03:00.1]}
2... g6 {[%clk 0:02:47.1]} 3. Nd2 {[%clk 0:02:42.2]} 3... Bg7 {[%clk 0:02:45.2]}
4. e4 {[%clk 0:02:42.1]} 4... d6 {[%clk 0:02:44.2]} 5. f3 {[%clk 0:02:41.2]}
5... O-O {[%clk 0:02:39.1]} 6. Nb3 {[%clk 0:02:37]} 6... e5 {[%clk 0:02:37]} 7.
Be3 {[%clk 0:02:36.2]} 7... Nc6 {[%clk 0:02:35.6]} 8. d5 {[%clk 0:02:34.2]} 8...
Ne7 {[%clk 0:02:30.1]} 9. Ne2 {[%clk 0:02:33.7]} 9... Ne8 {[%clk 0:02:27.7]} 10.
Qd2 {[%clk 0:02:33.9]} 10... f5 {[%clk 0:02:23.3]} 11. Bh6 {[%clk 0:02:32.8]}
11... fxe4 {[%clk 0:02:09.4]} 12. fxe4 {[%clk 0:02:31.4]} 12... Nf6 {[%clk
0:02:08.9]} 13. Bxg7 {[%clk 0:02:30.4]} 13... Kxg7 {[%clk 0:02:07.8]} 14. Nc3
{[%clk 0:02:30.3]} 14... Ng4 {[%clk 0:02:06.7]} 15. Nd1 {[%clk 0:02:26.3]} 15...
Ng8 {[%clk 0:01:56.7]} 16. h3 {[%clk 0:02:25.1]} 16... Qh4+ {[%clk 0:01:55.2]}
17. Ke2 {[%clk 0:02:23.2]} 17... Nf2 {[%clk 0:01:49.9]} 18. Qe3 {[%clk 0:02:08]}
18... Nxh1 {[%clk 0:01:46.6]} 19. Kd2 {[%clk 0:01:56.7]} 19... Rxf1 {[%clk
0:01:43]} 20. Kc3 {[%clk 0:01:50.3]} 20... Qe1+ {[%clk 0:01:41.7]} 21. Qxe1
{[%clk 0:01:48.8]} 21... Rxe1 {[%clk 0:01:42.6]} 22. Nd2 {[%clk 0:01:46.1]}
22... Nf6 {[%clk 0:01:41.4]} 0-1

[Event "Early-Titled-Tuesday-Blitz-April-16-2024"]
[Site "Chess.com"]
[Date "2024.04.16"]
[Round "10"]
[White "XDPS"]
[Black "Lion-Al-Messi"]
[Result "1-0"]
[WhiteElo "2832"]
[BlackElo "2575"]
[TimeControl "180+1"]
[EndTime "9:56:04 PDT"]
[Termination "XDPS won by resignation"]

1. e4 {[%clk 0:03:00.9]} 1... e6 {[%clk 0:02:59.3]} 2. d4 {[%clk 0:03:00.7]}
2... d5 {[%clk 0:02:59.8]} 3. exd5 {[%clk 0:03:01.6]} 3... exd5 {[%clk 0:03:00]}
4. Bd3 {[%clk 0:03:02.4]} 4... Nc6 {[%clk 0:03:00]} 5. Nf3 {[%clk 0:03:02.7]}
5... Bg4 {[%clk 0:02:59.7]} 6. c3 {[%clk 0:03:02.8]} 6... Bd6 {[%clk 0:02:59]}
7. O-O {[%clk 0:03:03.2]} 7... Nge7 {[%clk 0:02:59.3]} 8. Re1 {[%clk 0:03:03.4]}
8... Qd7 {[%clk 0:02:58.5]} 9. Nbd2 {[%clk 0:03:03.7]} 9... O-O-O {[%clk
0:02:57.2]} 10. b4 {[%clk 0:03:03.7]} 10... Rdg8 {[%clk 0:02:56.7]} 11. Qa4
{[%clk 0:02:58.7]} 11... Kb8 {[%clk 0:02:53]} 12. b5 {[%clk 0:02:55.6]} 12...
Nd8 {[%clk 0:02:52.1]} 13. Ba3 {[%clk 0:02:55.8]} 13... g5 {[%clk 0:02:48.9]}
14. Ne5 {[%clk 0:02:33.2]} 14... Bxe5 {[%clk 0:02:47.1]} 15. Rxe5 {[%clk
0:02:33.1]} 15... Ne6 {[%clk 0:02:44.8]} 16. Nb3 {[%clk 0:02:29.7]} 16... Ng6
{[%clk 0:02:32.5]} 17. Re3 {[%clk 0:02:19.6]} 17... Ngf4 {[%clk 0:02:31.6]} 18.
Bf1 {[%clk 0:02:19.4]} 18... h5 {[%clk 0:02:26.8]} 19. Nc5 {[%clk 0:02:18.6]}
19... Nxc5 {[%clk 0:02:26.4]} 20. dxc5 {[%clk 0:02:18.8]} 20... Qc8 {[%clk
0:02:16.8]} 21. b6 {[%clk 0:02:16.7]} 21... a6 {[%clk 0:01:56.4]} 22. c6 {[%clk
0:02:09.9]} 22... d4 {[%clk 0:01:47.5]} 23. Re7 {[%clk 0:02:05.4]} 23... Nd5
{[%clk 0:01:44.2]} 24. bxc7+ {[%clk 0:02:02.3]} 24... Ka7 {[%clk 0:01:31.4]} 25.
Qxd4+ {[%clk 0:02:01.4]} 25... Nb6 {[%clk 0:01:27.7]} 26. Bc5 {[%clk 0:01:59.5]}
1-0

[Event "Early-Titled-Tuesday-Blitz-April-16-2024"]
[Site "Chess.com"]
[Date "2024.04.16"]
[Round "10"]
[White "vangulio"]
[Black "Matibar"]
[Result "0-1"]
[WhiteElo "2575"]
[BlackElo "2808"]
[TimeControl "180+1"]
[EndTime "9:56:40 PDT"]
[Termination "Matibar won by resignation"]

1. e4 {[%clk 0:03:00.9]} 1... c5 {[%clk 0:02:55.2]} 2. Nf3 {[%clk 0:03:01]} 2...
Nc6 {[%clk 0:02:55.3]} 3. d4 {[%clk 0:03:01.7]} 3... cxd4 {[%clk 0:02:56.2]} 4.
Nxd4 {[%clk 0:03:02.2]} 4... Nf6 {[%clk 0:02:56.1]} 5. Nc3 {[%clk 0:03:02.7]}
5... d6 {[%clk 0:02:56.5]} 6. Bg5 {[%clk 0:03:02.2]} 6... Qb6 {[%clk 0:02:56.6]}
7. Nb3 {[%clk 0:02:55.3]} 7... e6 {[%clk 0:02:56.8]} 8. Qd2 {[%clk 0:02:54.5]}
8... Be7 {[%clk 0:02:57.4]} 9. O-O-O {[%clk 0:02:53.4]} 9... O-O {[%clk
0:02:58]} 10. Kb1 {[%clk 0:02:51.6]} 10... Rd8 {[%clk 0:02:58.2]} 11. Bd3 {[%clk
0:02:47.5]} 11... Bd7 {[%clk 0:02:45.7]} 12. f4 {[%clk 0:02:40.8]} 12... Be8
{[%clk 0:02:45.6]} 13. Rde1 {[%clk 0:02:23.7]} 13... h6 {[%clk 0:02:34.6]} 14.
h4 {[%clk 0:02:16.6]} 14... d5 {[%clk 0:02:01.6]} 15. e5 {[%clk 0:01:58.9]}
15... Ne4 {[%clk 0:02:00.8]} 16. Bxe4 {[%clk 0:01:16.8]} 16... dxe4 {[%clk
0:02:00.3]} 17. Qe2 {[%clk 0:01:17.5]} 17... e3 {[%clk 0:01:50.7]} 18. Bxe7
{[%clk 0:01:12.3]} 18... Nxe7 {[%clk 0:01:50.6]} 19. g4 {[%clk 0:01:08.3]} 19...
Nd5 {[%clk 0:01:43.8]} 20. Nxd5 {[%clk 0:01:07.9]} 20... Rxd5 {[%clk 0:01:43.6]}
21. Qxe3 {[%clk 0:01:05.7]} 21... Rd1+ {[%clk 0:01:42.2]} 0-1

[Event "Early-Titled-Tuesday-Blitz-April-16-2024"]
[Site "Chess.com"]
[Date "2024.04.16"]
[Round "10"]
[White "Zavgorodniy_Sergiy"]
[Black "Viktoker"]
[Result "0-1"]
[WhiteElo "2612"]
[BlackElo "2494"]
[TimeControl "180+1"]
[EndTime "9:56:53 PDT"]
[Termination "Viktoker won by resignation"]

1. d4 {[%clk 0:03:00.9]} 1... f5 {[%clk 0:02:57.4]} 2. c4 {[%clk 0:02:54.6]}
2... e6 {[%clk 0:02:54.6]} 3. Nf3 {[%clk 0:02:54.9]} 3... Nf6 {[%clk 0:02:54.7]}
4. g3 {[%clk 0:02:55.3]} 4... Be7 {[%clk 0:02:50.9]} 5. Bg2 {[%clk 0:02:55.6]}
5... Ne4 {[%clk 0:02:50.5]} 6. O-O {[%clk 0:02:56.5]} 6... d5 {[%clk 0:02:50.7]}
7. b3 {[%clk 0:02:56.3]} 7... Nc6 {[%clk 0:02:48.3]} 8. Ba3 {[%clk 0:02:54.3]}
8... Bxa3 {[%clk 0:02:43.8]} 9. Nxa3 {[%clk 0:02:54.2]} 9... Qe7 {[%clk
0:02:44.1]} 10. Nc2 {[%clk 0:02:54.2]} 10... h5 {[%clk 0:02:43]} 11. Nce1 {[%clk
0:02:52.1]} 11... g5 {[%clk 0:02:40]} 12. Nd3 {[%clk 0:02:51.6]} 12... h4 {[%clk
0:02:39.6]} 13. Nfe5 {[%clk 0:02:47.4]} 13... hxg3 {[%clk 0:02:22.6]} 14. hxg3
{[%clk 0:02:45]} 14... Qh7 {[%clk 0:02:21.5]} 15. Re1 {[%clk 0:02:45]} 15...
Nxd4 {[%clk 0:01:52.9]} 16. cxd5 {[%clk 0:02:44.9]} 16... exd5 {[%clk
0:01:51.8]} 17. Nb4 {[%clk 0:02:45.2]} 17... c5 {[%clk 0:01:36.7]} 18. Nxd5
{[%clk 0:02:43.8]} 18... Be6 {[%clk 0:01:30.8]} 19. Ne3 {[%clk 0:02:19.7]} 19...
O-O-O {[%clk 0:01:26.9]} 20. Qc1 {[%clk 0:02:18.1]} 20... Qh2+ {[%clk 0:01:07]}
21. Kf1 {[%clk 0:02:18.2]} 21... Nxb3 {[%clk 0:00:52]} 22. Nf3 {[%clk
0:01:57.2]} 22... Nbd2+ {[%clk 0:00:49.9]} 23. Qxd2 {[%clk 0:01:48.4]} 23...
Nxd2+ {[%clk 0:00:50.8]} 24. Nxd2 {[%clk 0:01:48.3]} 24... Rxd2 {[%clk
0:00:51.7]} 25. Rac1 {[%clk 0:01:45.7]} 25... b6 {[%clk 0:00:51.6]} 0-1